bitfinex-derivatives/quotes_BTCF0:USTF0_20251219
["timestamp","ask_amount","ask_price","bid_price","bid_amount"]
[1766176582676,1.45084,88298.0,88284.0,0.03441653]
[1766176582970,0.01150118,88300.0,88285.0,0.03441653]
[1766176582971,8e-08,88300.0,88285.0,0.03441653]
[1766176583272,1.44512,88317.0,88297.0,0.05033958]
[1766176583472,1.44512,88317.0,88293.0,0.06055259]
[1766176583473,0.00576,88315.0,88298.0,0.07342451]
[1766176583673,0.00576,88315.0,88299.0,0.03441653]
[1766176583863,0.00576,88315.0,88298.0,0.03900798]
[1766176583864,0.00576,88320.0,88310.0,0.03900798]
[1766176584064,0.00576,88320.0,88300.0,0.06055259]
[1766176584065,0.00297014,88319.0,88300.0,0.06055259]
[1766176584272,0.00297014,88319.0,88297.0,0.06055259]
[1766176584862,0.00297014,88319.0,88294.0,0.06055259]
[1766176585062,0.00297014,88319.0,88295.0,0.06055259]
[1766176585260,0.00297014,88319.0,88270.0,0.28067696]
[1766176585261,0.00297014,88319.0,88298.0,0.06072247]
[1766176585472,0.00013014,88319.0,88299.0,0.06055259]
[1766176585670,0.0113253,88347.0,88317.0,0.06055259]
[1766176585863,0.0113253,88347.0,88300.0,0.28643696]
[1766176585864,0.0058,88346.0,88319.0,0.06055259]
[1766176586273,0.0058,88346.0,88322.0,0.06055259]
[1766176586473,0.0058,88346.0,88323.0,0.06055259]
[1766176586672,0.00016988,88343.0,88326.0,0.06072247]
[1766176586970,0.0016,88342.0,88329.0,0.06055259]
[1766176587174,0.00292,88341.0,88332.0,0.06055259]
[1766176587369,0.00016988,88343.0,88334.0,0.06055259]
[1766176587672,0.00212,88342.0,88335.0,0.06055259]
[1766176587969,0.00212,88342.0,88337.0,0.06055259]
[1766176587970,0.00192542,88342.0,88337.0,0.06055259]
[1766176588177,0.00192542,88342.0,88336.0,0.06055259]
[1766176588472,0.00192542,88342.0,88338.0,0.06055259]
[1766176589275,0.00192542,88342.0,88339.0,0.06055259]
[1766176589474,0.0058,88341.0,88339.0,0.06055259]
[1766176589772,0.0058,88340.0,88337.0,0.06055259]
[1766176589967,0.0113242,88355.0,88337.0,0.06055259]
[1766176590172,0.0058,88354.0,88338.0,0.06055259]
[1766176590369,0.00504,88353.0,88337.0,0.06072236]
[1766176590568,0.00504,88353.0,88323.0,0.07904518]
[1766176590569,1.45068,88352.0,88320.0,0.08904518]
[1766176590763,0.28067696,88350.0,88320.0,0.01]
[1766176591169,1.45068,88352.0,88320.0,0.01]
[1766176591363,1.45064,88351.0,88325.0,0.0113279]
[1766176591577,1.45064,88351.0,88320.0,0.00054285]
[1766176591973,1.45064,88351.0,88325.0,0.0113279]
[1766176592175,0.0113248,88350.0,88320.0,0.00054285]
[1766176592671,0.0113248,88350.0,88326.0,0.00016977]
[1766176592873,0.0113251,88348.0,88326.0,0.00016977]
[1766176593077,0.28067696,88350.0,88326.0,0.00016977]
[1766176593078,0.0113256,88344.0,88326.0,0.00016977]
[1766176593266,0.0058,88343.0,88326.0,0.00016977]
[1766176594078,0.0113259,88342.0,88320.0,0.00054285]
[1766176594276,0.0113259,88342.0,88288.0,0.09272463]
[1766176594277,0.0113269,88334.0,88303.0,0.0113308]
[1766176594576,1.45056,88333.0,88303.0,0.0113308]
[1766176594769,1.4618871,88333.0,88301.0,0.0113311]
[1766176595162,0.00016977,88326.0,88309.0,0.00016977]
[1766176595378,0.0058,88325.0,88309.0,0.00016977]
[1766176596073,0.017128,88325.0,88310.0,0.03067951]
[1766176596268,0.0113291,88317.0,88283.0,0.01]
[1766176596472,0.0113295,88314.0,88284.0,0.0113332]
[1766176596673,0.0113298,88312.0,88284.0,0.11322784]
[1766176596878,0.0113298,88312.0,88283.0,0.0213334]
[1766176597078,0.00016988,88306.0,88283.0,0.0213334]
[1766176597282,0.00568473,88305.0,88287.0,0.0113328]
[1766176598076,0.00568473,88305.0,88283.0,0.01]
[1766176598275,0.00568473,88305.0,88272.0,1.3776532]
[1766176598577,0.00568473,88305.0,88284.0,0.0113332]
[1766176600381,0.00568473,88305.0,88278.0,0.011334]
[1766176601286,0.00568473,88305.0,88274.0,0.0113345]
[1766176601673,0.00568473,88305.0,88280.0,0.0803883]
[1766176602580,0.00568473,88305.0,88281.0,0.0113336]
[1766176603691,0.00568473,88305.0,88280.0,0.0803883]
[1766176604401,0.00568473,88305.0,88279.0,0.0803883]
[1766176605288,0.00568473,88305.0,88276.0,0.0113342]
[1766176605289,0.00568473,88305.0,88278.0,0.0803883]
[1766176605488,1.44472,88313.0,88276.0,0.0113342]
[1766176605489,0.01,88353.0,88295.0,0.28067696]
[1766176605695,0.00576,88352.0,88310.0,0.28067696]
[1766176605997,1.45072,88351.0,88311.0,0.0058]
[1766176606295,0.0113248,88350.0,88316.0,0.0113291]
[1766176606508,0.00016988,88342.0,88324.0,0.00016988]
[1766176606700,0.0058,88341.0,88324.0,0.00016988]
[1766176608195,0.0058,88341.0,88325.0,0.03044881]
[1766176608398,0.0058,88341.0,88326.0,0.03045257]
[1766176608594,0.0058,88341.0,88324.0,0.00016988]
[1766176608794,0.0058,88341.0,88325.0,0.03045306]
[1766176609106,0.0058,88341.0,88326.0,0.03045306]
[1766176609304,0.0058,88341.0,88324.0,0.00016988]
[1766176609497,0.0058,88341.0,88325.0,0.03045583]
[1766176609697,0.0058,88341.0,88326.0,0.03045583]
[1766176610008,0.0058,88341.0,88324.0,0.00016988]
[1766176610203,0.0058,88341.0,88325.0,0.03045595]
[1766176610407,0.0058,88341.0,88311.0,0.07157649]
[1766176610595,0.0058,88341.0,88311.0,0.0113297]
[1766176610995,0.28067696,88340.0,88301.0,0.06024679]
[1766176611300,0.0113282,88324.0,88291.0,0.06024679]
[1766176611502,0.0113282,88324.0,88284.0,0.11320797]
[1766176611503,0.00016988,88316.0,88288.0,0.06024679]
[1766176611703,0.00392,88315.0,88289.0,0.0113326]
[1766176614206,0.00392,88315.0,88292.0,0.04019731]
[1766176614406,0.00392,88315.0,88291.0,0.04019731]
[1766176615297,0.00392,88315.0,88290.0,0.04019731]
[1766176615499,0.00392,88315.0,88294.0,0.04019731]
[1766176615697,0.28067696,88310.0,88288.0,0.06024679]
[1766176615901,0.28067696,88310.0,88283.0,0.01]
[1766176616200,0.28067696,88290.0,88266.0,0.06024679]
[1766176616394,0.01150288,88287.0,88256.0,0.06024679]
[1766176616604,0.00016988,88287.0,88268.0,0.0113352]
[1766176616812,0.00016988,88287.0,88260.0,0.28067696]
[1766176616813,0.00576,88286.0,88264.0,0.0113358]
[1766176617110,0.00576,88286.0,88268.0,0.0113352]
[1766176617701,0.00576,88286.0,88256.0,0.06024679]
[1766176617899,0.0113332,88285.0,88254.0,0.06024679]
[1766176618102,0.0113332,88285.0,88253.0,0.07158389]
[1766176618304,0.0113342,88277.0,88248.0,0.0113378]
[1766176618505,0.28067696,88270.0,88246.0,0.01]
[1766176618700,0.00016988,88267.0,88246.0,0.01]
[1766176619411,0.00016988,88267.0,88246.0,0.0213381]
[1766176619610,0.00011158,88266.0,88246.0,0.0213381]
[1766176620107,0.00011158,88266.0,88246.0,0.01]
[1766176620315,0.00011158,88266.0,88250.0,0.0113376]
[1766176620701,0.00011158,88266.0,88246.0,0.01]
[1766176620901,0.00011158,88266.0,88247.0,0.0113379]
[1766176621308,1.46e-06,88267.0,88250.0,0.28067696]
[1766176621512,1.46e-06,88267.0,88256.0,0.0113368]
[1766176621709,1.46e-06,88267.0,88247.0,0.1133061]
[1766176621915,1.46e-06,88267.0,88246.0,0.01]
[1766176622303,1.46e-06,88267.0,88248.0,0.0001691]
[1766176622513,0.0006,88266.0,88248.0,0.0001691]
[1766176623713,0.0113357,88265.0,88248.0,0.0001691]
[1766176624109,0.0113357,88265.0,88246.0,0.01]
[1766176626309,0.0113362,88262.0,88233.0,0.0113398]
[1766176626504,0.0119356,88266.0,88233.0,0.0113398]
[1766176627222,0.0113361,88262.0,88233.0,0.0113398]
[1766176627518,0.0113358,88265.0,88233.0,0.0113398]
[1766176628120,0.0113373,88253.0,88224.0,0.0113409]
[1766176628311,0.0113387,88242.0,88211.0,0.0113425]
[1766176628512,0.00388,88241.0,88210.0,0.01]
[1766176628714,0.0113397,88234.0,88210.0,0.01]
[1766176628918,0.0113403,88230.0,88210.0,0.01]
[1766176629120,0.00592997,88229.0,88210.0,0.01]
[1766176629423,8.337e-05,88228.0,88210.0,0.01]
[1766176631125,3.34e-06,88229.0,88210.0,0.01]
[1766176631727,3.34e-06,88229.0,88220.0,0.0113414]
[1766176632224,5.339e-05,88228.0,88220.0,0.0113414]
[1766176632818,5.339e-05,88228.0,88216.0,0.00016696]
[1766176634830,0.00216,88227.0,88216.0,0.00016696]
[1766176637530,0.00216,88227.0,88210.0,0.01]
[1766176639220,0.0113408,88226.0,88210.0,0.01]
[1766176639424,0.00216,88227.0,88210.0,0.01]
[1766176642722,0.0135007,88227.0,88210.0,0.01]
[1766176643332,0.011341,88224.0,88210.0,0.04003343]
[1766176643523,0.011341,88224.0,88206.0,0.03003343]
[1766176643836,0.00216,88227.0,88206.0,0.02999343]
[1766176644029,0.0113409,88225.0,88206.0,0.02999343]
[1766176644230,0.0113413,88222.0,88196.0,0.06024679]
[1766176644439,0.0113417,88219.0,88196.0,0.06024679]
[1766176644637,0.0113417,88219.0,88195.0,0.06024679]
[1766176644932,1.44832,88227.0,88184.0,0.11774216]
[1766176644933,0.4124192,88220.0,88190.0,0.06024679]
[1766176645231,0.0113431,88208.0,88184.0,0.06024679]
[1766176645423,0.00581339,88207.0,88191.0,0.0113451]
[1766176645625,0.00292,88206.0,88182.0,0.06024679]
[1766176645831,0.00016997,88214.0,88189.0,0.04029458]
[1766176646024,0.00096,88213.0,88197.0,0.0113443]
[1766176646831,0.00096,88213.0,88192.0,0.04029458]
[1766176647019,0.00096,88213.0,88199.0,0.0113441]
[1766176647219,0.00096,88213.0,88196.0,0.0113445]
[1766176647435,0.00096,88213.0,88199.0,0.0113441]
[1766176648027,0.00096,88213.0,88195.0,0.0113446]
[1766176648321,0.00096,88213.0,88198.0,0.0113443]
[1766176649037,0.00096,88213.0,88195.0,0.04029458]
[1766176649038,0.00096,88213.0,88195.0,0.05163918]
[1766176649829,0.00016997,88214.0,88199.0,0.0113441]
[1766176650039,0.00036,88213.0,88195.0,0.04029458]
[1766176650531,0.00036,88213.0,88198.0,0.04029458]
[1766176651337,0.00576,88212.0,88198.0,0.04029458]
[1766176651638,0.00576,88212.0,88199.0,0.04029458]
[1766176652338,0.00576,88211.0,88200.0,0.04029458]
[1766176652529,0.00016997,88214.0,88200.0,0.04029458]
[1766176652927,0.0014,88213.0,88200.0,0.04029458]
[1766176653132,0.0014,88213.0,88194.0,0.04029458]
[1766176653628,0.0014,88213.0,88182.0,0.00576]
[1766176653629,0.0014,88213.0,88195.0,0.05163918]
[1766176654238,0.0014,88213.0,88195.0,0.04029458]
[1766176654434,0.0113426,88212.0,88195.0,0.04029458]
[1766176654637,0.0014,88213.0,88194.0,0.04029458]
[1766176655034,0.0127424,88213.0,88194.0,0.04029458]
[1766176655234,0.0127424,88213.0,88195.0,0.04029458]
[1766176655536,0.0014,88213.0,88197.0,0.04029458]
[1766176655931,0.0127425,88213.0,88197.0,0.04029458]
[1766176656329,0.0127425,88213.0,88185.0,0.0113459]
[1766176656330,0.0127425,88213.0,88198.0,0.04029458]
[1766176657340,0.0127425,88213.0,88200.0,0.04029458]
[1766176658139,0.0127425,88213.0,88194.0,0.06024679]
[1766176658439,0.0127425,88213.0,88195.0,0.06024679]
[1766176659128,0.0127425,88213.0,88194.0,0.06024679]
[1766176659630,0.0014,88213.0,88194.0,0.06024679]
[1766176660128,0.0014,88213.0,88193.0,0.06024679]
[1766176660438,0.0014,88213.0,88193.0,0.07159169]
[1766176660633,0.0014,88213.0,88195.0,0.07159149]
[1766176660839,0.0014,88213.0,88195.0,0.06024679]
[1766176661543,0.011343,88209.0,88191.0,0.06024679]
[1766176661725,0.0127425,88213.0,88190.0,0.06024679]
[1766176661928,0.0014,88213.0,88187.0,0.06024679]
[1766176662233,0.00436,88212.0,88190.0,0.06024679]
[1766176662430,0.00152,88211.0,88196.0,0.0113445]
[1766176663429,0.00152,88211.0,88192.0,0.011345]
[1766176663629,0.00152,88211.0,88195.0,0.0113446]
[1766176665334,0.00152,88211.0,88192.0,0.06024679]
[1766176665532,0.00152,88211.0,88193.0,0.0113449]
[1766176665725,0.00152,88211.0,88192.0,0.06024679]
[1766176666339,0.41290082,88230.0,88178.0,0.08053089]
[1766176666340,0.0113363,88260.0,88203.0,0.06024679]
[1766176666636,0.0113405,88228.0,88207.0,0.06024679]
[1766176666834,0.00576,88227.0,88203.0,0.0113437]
[1766176667039,0.0113408,88226.0,88199.0,0.0113442]
[1766176667240,0.00017008,88221.0,88204.0,0.00017008]
[1766176667639,0.011342,88217.0,88204.0,0.00017008]
[1766176667839,0.011342,88217.0,88197.0,0.06024679]
[1766176667840,0.00576,88216.0,88192.0,0.06024679]
[1766176668034,0.00576,88216.0,88191.0,0.06024679]
[1766176668234,0.0113423,88214.0,88191.0,0.06024679]
[1766176668644,0.00576,88216.0,88191.0,0.06024679]
[1766176668849,0.0113421,88215.0,88191.0,0.06024679]
[1766176669727,0.00576,88216.0,88191.0,0.06024679]
[1766176670432,0.0113423,88214.0,88191.0,0.06024679]
[1766176671034,0.00576,88216.0,88191.0,0.06024679]
[1766176671235,0.00576,88216.0,88192.0,0.06024679]
[1766176671638,0.0113423,88214.0,88192.0,0.06024679]
[1766176671843,0.0113423,88214.0,88188.0,0.0113455]
[1766176671844,0.0113423,88214.0,88198.0,0.06024679]
[1766176672241,0.0113428,88211.0,88198.0,0.06024679]
[1766176672437,0.0113431,88208.0,88197.0,0.06024679]
[1766176672744,0.00576,88207.0,88197.0,0.06024679]
[1766176678135,0.00576,88207.0,88198.0,0.06024679]
[1766176681652,0.00576,88207.0,88197.0,0.06084676]
[1766176682250,0.00576,88207.0,88188.0,0.08044216]
[1766176684653,0.00576,88207.0,88188.0,0.09178776]
[1766176684857,0.00576,88207.0,88188.0,0.08044216]
[1766176685857,0.00017008,88211.0,88189.0,0.0113454]
[1766176686067,0.00248,88210.0,88189.0,0.09178756]
[1766176687352,0.00248,88210.0,88189.0,0.09178766]
[1766176687956,0.00248,88210.0,88189.0,0.08044216]
[1766176688150,0.00576,88209.0,88201.0,0.04056788]
[1766176688848,0.00576,88208.0,88201.0,0.04056788]
[1766176689657,0.00576,88207.0,88202.0,0.04056788]
[1766176689852,0.00576,88207.0,88186.0,0.08044216]
[1766176690052,0.0113452,88192.0,88173.0,0.01]
[1766176690249,0.28153422,88200.0,88173.0,0.01]
[1766176690250,0.0113462,88184.0,88173.0,0.01]
[1766176690444,0.00576,88183.0,88164.0,0.01009594]
[1766176690650,0.00576,88186.0,88179.0,0.0113467]
[1766176690854,0.00576,88185.0,88175.0,0.0113472]
[1766176691157,0.00284,88185.0,88169.0,0.00276]
[1766176691358,0.0014,88186.0,88170.0,0.22525894]
[1766176691554,0.00068,88186.0,88178.0,0.0113469]
[1766176692044,0.00017008,88187.0,88178.0,0.0113469]
[1766176692243,0.22525894,88200.0,88181.0,0.0113464]
[1766176692447,0.00576,88199.0,88181.0,0.0113464]
[1766176692666,0.00576,88198.0,88181.0,0.0113464]
[1766176692955,0.00576,88198.0,88180.0,0.22525894]
[1766176693161,0.00576,88198.0,88175.0,0.0113472]
[1766176693456,0.00593008,88198.0,88175.0,0.0113472]
[1766176695560,0.00593008,88198.0,88178.0,0.0113468]
[1766176695751,0.00593008,88198.0,88173.0,0.00576]
[1766176695951,0.00576,88197.0,88179.0,0.0113467]
[1766176697061,0.00017008,88198.0,88179.0,0.0113467]
[1766176697364,0.00576,88196.0,88179.0,0.0113467]
[1766176698364,0.00576,88196.0,88173.0,0.00576]
[1766176698959,0.00576,88196.0,88183.0,0.0113461]
[1766176700055,0.00576,88196.0,88180.0,0.22525894]
[1766176700261,0.00576,88196.0,88177.0,0.0113469]
[1766176701553,0.00576,88196.0,88180.0,0.0113466]
[1766176701858,0.00576,88195.0,88180.0,0.0113466]
[1766176702364,0.00576,88195.0,88179.0,0.06080371]
[1766176702959,0.22525894,88190.0,88179.0,0.06080371]
[1766176703161,0.0113455,88189.0,88164.0,0.0170686]
[1766176703357,0.00576,88188.0,88164.0,0.0113486]
[1766176703564,0.0113455,88189.0,88164.0,0.0113486]
[1766176703565,0.00576,88187.0,88164.0,0.0113486]
[1766176704158,0.00576,88187.0,88167.0,0.0113482]
[1766176704565,0.23660434,88190.0,88163.0,0.0113488]
[1766176704862,0.00576,88186.0,88166.0,0.0113484]
[1766176705067,0.0171059,88186.0,88162.0,0.00576]
[1766176705253,0.0113468,88179.0,88158.0,0.0113494]
[1766176705455,0.00572,88178.0,88161.0,0.011349]
[1766176705650,1.44701008,88198.0,88168.0,0.22525894]
[1766176705651,0.00017008,88198.0,88168.0,0.22525894]
[1766176706267,0.00576,88197.0,88168.0,0.22525894]
[1766176706565,0.00576,88196.0,88168.0,0.22525894]
[1766176706764,0.22525894,88190.0,88169.0,0.01151808]
[1766176706965,0.00576,88189.0,88172.0,0.0113476]
[1766176707162,0.00017008,88198.0,88178.0,0.0113468]
[1766176707363,1.44688,88222.0,88199.0,0.0113441]
[1766176707673,0.0113417,88219.0,88190.0,0.23660414]
[1766176708468,0.00017008,88213.0,88196.0,0.00017008]
[1766176708766,0.00576,88212.0,88196.0,0.00017008]
[1766176708967,0.00576,88212.0,88197.0,0.0113444]
[1766176709167,0.00017008,88213.0,88197.0,0.0113444]
[1766176709356,0.00017008,88213.0,88196.0,0.00017008]
[1766176709357,0.00576,88222.0,88209.0,0.0113428]
[1766176709559,0.00284,88221.0,88212.0,0.22525894]
[1766176709757,0.00284,88220.0,88212.0,0.22525894]
[1766176710165,0.00284,88220.0,88205.0,0.0113434]
[1766176710464,0.22809894,88220.0,88204.0,0.00017008]
[1766176710652,0.23944044,88220.0,88204.0,0.00017008]
[1766176711264,0.00284,88220.0,88204.0,0.00017008]
[1766176711460,0.0034,88219.0,88210.0,0.22525894]
[1766176711664,0.00576,88218.0,88204.0,0.00017008]
[1766176711859,0.00288,88217.0,88204.0,0.00017008]
[1766176712268,0.00144,88216.0,88204.0,0.00017008]
[1766176712570,0.00076,88215.0,88204.0,0.00017008]
[1766176712770,0.00076,88214.0,88204.0,0.00017008]
[1766176713072,0.00017008,88221.0,88205.0,0.0113434]
[1766176713260,0.0004,88220.0,88205.0,0.0113434]
[1766176713455,0.00017008,88221.0,88208.0,0.0113429]
[1766176713661,0.48431945,88421.0,88204.0,0.00017008]
[1766176713662,0.002,88260.0,88211.0,0.0113426]
[1766176713860,0.22725894,88260.0,88232.0,0.0113399]
[1766176714369,0.011337,88255.0,88227.0,0.0171005]
[1766176714682,0.22725894,88260.0,88232.0,0.00017008]
[1766176714683,0.00017008,88250.0,88232.0,0.00017008]
[1766176714969,0.00376,88249.0,88232.0,0.00017008]
[1766176716862,0.00376,88249.0,88233.0,0.0113398]
[1766176717057,0.00376,88249.0,88232.0,0.00017008]
[1766176718773,0.00376,88249.0,88232.0,0.01150998]
[1766176719359,0.00017008,88250.0,88232.0,0.00017008]
[1766176719360,0.0038,88248.0,88232.0,0.00017008]
[1766176719676,8e-08,88251.0,88241.0,0.0113387]
[1766176720565,1.4577751,88270.0,88241.0,0.0113387]
[1766176720566,0.0113351,88270.0,88241.0,0.0113387]
[1766176720768,0.00011275,88264.0,88247.0,0.00016996]
[1766176721074,0.0113365,88259.0,88247.0,0.00016996]
[1766176721273,0.00572,88258.0,88247.0,0.00016996]
[1766176722565,0.011336,88263.0,88247.0,0.00016996]
[1766176722876,0.00568,88262.0,88247.0,0.00016996]
[1766176723764,0.28121309,88290.0,88247.0,0.00016996]
[1766176723965,0.0113357,88266.0,88247.0,0.00016996]
[1766176724263,0.00572,88265.0,88251.0,0.0113374]
[1766176724464,0.00284,88264.0,88247.0,0.00016996]
[1766176725074,0.00284,88264.0,88247.0,0.01150796]
[1766176725275,0.0113344,88275.0,88247.0,0.01150796]
[1766176725476,0.0014,88274.0,88247.0,0.01150796]
[1766176725676,0.0014,88274.0,88250.0,0.0113375]
[1766176725878,0.00572,88273.0,88250.0,0.0113375]
[1766176726378,0.01,88279.0,88259.0,0.0113364]
[1766176726674,0.00572,88275.0,88259.0,0.0113364]
[1766176727263,0.00572,88275.0,88251.0,0.0373]
[1766176727467,0.0170545,88275.0,88251.0,0.0373]
[1766176728470,0.00572,88275.0,88251.0,0.0373]
[1766176728869,0.00572,88275.0,88252.0,0.0113374]
[1766176729070,0.00572,88275.0,88251.0,0.0373]
[1766176729369,0.00572,88275.0,88252.0,0.0113374]
[1766176730273,0.00572,88275.0,88251.0,0.04302]
[1766176730274,0.00572,88275.0,88251.0,0.0373]
[1766176730574,0.011335,88271.0,88251.0,0.0373]
[1766176730781,0.011335,88271.0,88247.0,0.00016996]
[1766176731780,0.0113361,88263.0,88247.0,0.00016996]
[1766176731965,0.0113362,88261.0,88236.0,0.0113394]
[1766176732171,0.00564,88262.0,88236.0,0.0113394]
[1766176733068,0.00016996,88258.0,88240.0,0.00016996]
[1766176733479,0.00016996,88258.0,88241.0,0.0113387]
[1766176735579,0.00016996,88258.0,88245.0,0.0113382]
[1766176735780,0.22493863,88290.0,88248.0,0.22493863]
[1766176735781,0.001,88257.0,88248.0,0.22493863]
[1766176736077,1.44592,88274.0,88258.0,0.0113365]
[1766176736283,0.00572,88273.0,88256.0,0.0113368]
[1766176736682,0.0113341,88278.0,88251.0,0.0113374]
[1766176736885,0.00572,88277.0,88256.0,0.00016996]
[1766176737076,0.0113341,88278.0,88256.0,0.00016996]
[1766176737383,0.00572,88277.0,88256.0,0.00016996]
[1766176740485,0.0170542,88277.0,88256.0,0.00016996]
[1766176740874,0.0113347,88273.0,88256.0,0.00016996]
[1766176741074,0.0113347,88273.0,88233.0,0.0373]
[1766176741075,0.28107502,88270.0,88234.0,0.0113397]
[1766176741389,0.00572,88269.0,88241.0,0.0113387]
[1766176741584,0.01,88279.0,88241.0,0.0113387]
[1766176741780,0.01,88279.0,88225.0,0.09756926]
[1766176741781,1.47607289,88278.0,88236.0,0.0113394]
[1766176742082,0.00016996,88266.0,88236.0,0.0113394]
[1766176742289,0.011336,88263.0,88232.0,0.0113399]
[1766176742489,0.011336,88263.0,88223.0,1.44584]
[1766176742490,0.0113379,88249.0,88219.0,0.0113415]
[1766176742676,0.0113383,88246.0,88214.0,0.0113422]
[1766176743073,0.0113383,88246.0,88221.0,0.00016996]
[1766176743074,0.00016996,88239.0,88221.0,0.00016996]
[1766176743278,0.00492,88238.0,88221.0,0.00016996]
[1766176750095,0.0113399,88233.0,88210.0,0.01]
[1766176751091,0.0113399,88233.0,88213.0,0.00016996]
[1766176751490,0.00016996,88239.0,88217.0,0.0113418]
[1766176751689,0.0054,88238.0,88217.0,0.0113418]
[1766176752085,0.00016996,88239.0,88217.0,0.0113419]
[1766176752286,0.00184,88238.0,88217.0,0.0113419]
[1766176753183,0.00184,88238.0,88213.0,0.00016996]
[1766176753883,0.00184,88238.0,88217.0,0.0113418]
[1766176754083,0.00184,88238.0,88213.0,0.01151226]
[1766176754484,0.00184,88238.0,88213.0,0.00016996]
[1766176754683,0.00184,88238.0,88190.0,0.41262529]
[1766176754684,0.011342,88216.0,88190.0,0.06026926]
[1766176754885,0.00068,88215.0,88189.0,0.0113454]
[1766176755085,0.00372,88214.0,88189.0,0.0113454]
[1766176755794,0.00017006,88210.0,88193.0,0.00017006]
[1766176758590,0.00017006,88210.0,88177.0,0.07161616]
[1766176758796,0.0113448,88194.0,88163.0,0.0113487]
[1766176758996,0.41262529,88200.0,88162.0,0.00011073]
[1766176758997,0.0113464,88182.0,88162.0,0.00011073]
[1766176759292,0.00572,88181.0,88162.0,0.00011073]
[1766176759495,0.00372,88180.0,88162.0,0.00011073]
[1766176759696,0.00389006,88180.0,88162.0,0.00028079]
[1766176759996,0.00389006,88180.0,88162.0,0.01162969]
[1766176760294,0.00389006,88180.0,88162.0,0.00028079]
[1766176760699,0.00389006,88180.0,88163.0,0.0113488]
[1766176760996,0.00389006,88180.0,88162.0,0.00028079]
[1766176762383,0.0113469,88179.0,88127.0,0.06026926]
[1766176762694,0.0113507,88149.0,88122.0,0.08900314]
[1766176763012,0.41262529,88160.0,88118.0,0.0113545]
[1766176763013,0.0170708,88148.0,88118.0,0.0113545]
[1766176763191,0.0113514,88143.0,88113.0,0.11341597]
[1766176763388,8.116e-05,88142.0,88112.0,0.0113553]
[1766176763596,1.7e-07,88136.0,88121.0,0.0113541]
[1766176763787,1.7e-07,88136.0,88118.0,0.00011382]
[1766176763986,1.7e-07,88136.0,88119.0,0.0113544]
[1766176765198,1.7e-07,88136.0,88118.0,0.00583382]
[1766176765795,1.7e-07,88136.0,88119.0,0.0113544]
[1766176766800,1.7e-07,88136.0,88118.0,0.00011382]
[1766176768098,0.00064,88135.0,88118.0,0.00011382]
[1766176768284,0.00064,88135.0,88123.0,0.0113539]
[1766176768486,1.7e-07,88136.0,88123.0,0.0113539]
[1766176768698,0.00032,88135.0,88118.0,0.01146842]
[1766176768999,0.00032,88135.0,88118.0,0.00011382]
[1766176769797,0.00032,88135.0,88106.0,0.0113561]
[1766176770103,0.41262529,88130.0,88100.0,0.01]
[1766176770303,0.00032,88135.0,88100.0,0.01]
[1766176770304,0.0113534,88128.0,88100.0,0.01]
[1766176770602,0.0113528,88133.0,88100.0,0.01]
[1766176770906,0.0113527,88134.0,88108.0,0.00017]
[1766176771091,0.00032,88135.0,88108.0,0.00017]
[1766176771291,0.0116724,88135.0,88108.0,0.00017]
[1766176771491,0.00032,88135.0,88109.0,0.0113557]
[1766176771995,0.0116725,88135.0,88108.0,0.00017]
[1766176772797,0.0113525,88135.0,88108.0,0.00017]
[1766176773006,0.00384,88134.0,88108.0,0.00017]
[1766176773502,0.0113529,88132.0,88108.0,0.00017]
[1766176773703,0.0113533,88128.0,88108.0,0.00017]
[1766176773903,0.0113538,88124.0,88108.0,0.00017]
[1766176774094,0.005,88123.0,88108.0,0.00017]
[1766176774791,1.7e-07,88136.0,88116.0,0.0113548]
[1766176775095,1.7e-07,88136.0,88108.0,0.00017]
[1766176775898,0.01135257,88136.0,88108.0,0.00017]
[1766176776098,0.00372,88135.0,88108.0,0.00017]
[1766176776304,0.0113526,88134.0,88108.0,0.00017]
[1766176777005,0.0113532,88129.0,88108.0,0.00017]
[1766176777199,0.00372,88135.0,88105.0,0.00572]
[1766176777504,0.0113551,88115.0,88101.0,0.00188]
[1766176777800,0.00011332,88114.0,88101.0,0.00188]
[1766176778302,0.00011332,88114.0,88100.0,0.01]
[1766176780792,0.0113553,88113.0,88100.0,0.01]
[1766176781002,0.00011332,88114.0,88100.0,0.01]
[1766176783397,0.01146852,88114.0,88100.0,0.01]
[1766176784000,0.0113557,88110.0,88100.0,1e-07]
[1766176784196,0.00572,88109.0,88100.0,1e-07]
[1766176788203,0.0113559,88108.0,88100.0,1e-07]
[1766176788410,0.0113564,88104.0,88100.0,1e-07]
[1766176788795,0.0113564,88104.0,88085.0,8.071e-05]
[1766176789202,0.011357,88100.0,88085.0,8.071e-05]
[1766176789409,0.00392,88099.0,88085.0,8.071e-05]
[1766176790601,0.00011332,88114.0,88085.0,8.071e-05]
[1766176790799,0.00572,88113.0,88085.0,8.071e-05]
[1766176791002,0.41262529,88100.0,88085.0,7.1e-07]
[1766176791201,0.0133172,88099.0,88085.0,7.1e-07]
[1766176791407,0.0113581,88092.0,88085.0,7.1e-07]
[1766176792002,0.0113586,88088.0,88064.0,0.01]
[1766176792210,0.00572,88089.0,88065.0,0.0170814]
[1766176792712,0.0113586,88088.0,88065.0,0.0170814]
[1766176793011,0.41262529,88080.0,88037.0,0.0113651]
[1766176793213,0.0113625,88058.0,88032.0,0.00012301]
[1766176793515,0.0113626,88056.0,88032.0,0.00012301]
[1766176793818,0.00582556,88057.0,88032.0,0.00012301]
[1766176794002,0.0113636,88049.0,88032.0,0.00012301]
[1766176794209,0.41262529,88042.0,88014.0,0.011368]
[1766176794411,0.00572,88041.0,87997.0,0.00372]
[1766176794715,0.0113662,88028.0,87994.0,0.00572]
[1766176794906,0.0113665,88026.0,87994.0,0.00572]
[1766176795105,9.756e-05,88025.0,87996.0,0.0113703]
[1766176795314,9.756e-05,88025.0,87994.0,0.00572]
[1766176795507,1.44832,88056.0,88023.0,0.0113668]
[1766176795815,0.0113653,88036.0,88012.0,0.00576]
[1766176796114,0.00576,88035.0,88000.0,0.05]
[1766176796315,0.00376,88034.0,88000.0,0.05]
[1766176796609,1.5,88049.0,88009.0,0.0113686]
[1766176796610,0.00017037,88026.0,88009.0,0.0113686]
[1766176796817,0.00013673,88033.0,88013.0,0.0113681]
[1766176797618,0.00013673,88033.0,88012.0,0.0113682]
[1766176798008,0.00017037,88031.0,88012.0,0.0113682]
[1766176798417,0.00017037,88031.0,88008.0,0.00017037]
[1766176799212,0.00384,88030.0,88008.0,0.00017037]
[1766176799618,0.00017037,88031.0,88008.0,0.00017037]
[1766176800207,0.00017037,88031.0,88009.0,0.0113686]
[1766176800621,0.00017037,88031.0,88013.0,0.0113681]